Workbook

Sheet Sheet1
A1: 肥西县花岗镇2022年公开招考村级后备干部笔试及加分总成绩
A2: 序号 | B2: 岗位名称 | C2: 准考证号 | D2: 考场 | E2: 户籍加分 | F2: 退伍加分 | G2: 笔试成绩 | H2: 笔试总分 | I2: 备注
A3: 1 | B3: 工作人员-22052902 | C3: 202205290101 | D3: 第一考场 | G3: 65.3 | H3: =E3+F3+G3 -> 65.3
A4: 2 | B4: 工作人员-22052904 | C4: 202205290102 | D4: 第一考场 | G4: 0 | H4: 0 | I4: 缺考
A5: 3 | B5: 工作人员-22052902 | C5: 202205290103 | D5: 第一考场 | G5: 0 | H5: 0 | I5: 缺考
A6: 4 | B6: 工作人员-22052901 | C6: 202205290104 | D6: 第一考场 | E6: 1 | G6: 47.1 | H6: 48.1
A7: 5 | B7: 工作人员-22052901 | C7: 202205290105 | D7: 第一考场 | G7: 48.4 | H7: 48.4
A8: 6 | B8: 工作人员-22052902 | C8: 202205290106 | D8: 第一考场 | G8: 43.6 | H8: 43.6
A9: 7 | B9: 工作人员-22052902 | C9: 202205290107 | D9: 第一考场 | G9: 0 | H9: 0 | I9: 缺考
A10: 8 | B10: 工作人员-22052901 | C10: 202205290108 | D10: 第一考场 | G10: 55.8 | H10: 55.8
A11: 9 | B11: 工作人员-22052901 | C11: 202205290109 | D11: 第一考场 | G11: 48.7 | H11: 48.7
A12: 10 | B12: 工作人员-22052905 | C12: 202205290110 | D12: 第一考场 | E12: 1 | G12: 60.7 | H12: 61.7
A13: 11 | B13: 工作人员-22052901 | C13: 202205290111 | D13: 第一考场 | E13: 1 | G13: 49.5 | H13: 50.5
A14: 12 | B14: 工作人员-22052903 | C14: 202205290112 | D14: 第一考场 | E14: 1 | G14: 64.6 | H14: 65.6
A15: 13 | B15: 工作人员-22052902 | C15: 202205290113 | D15: 第一考场 | G15: 61.8 | H15: 61.8
A16: 14 | B16: 工作人员-22052903 | C16: 202205290114 | D16: 第一考场 | E16: 1 | G16: 59.9 | H16: 60.9
A17: 15 | B17: 工作人员-22052901 | C17: 202205290115 | D17: 第一考场 | E17: 1 | G17: 46.3 | H17: 47.3
A18: 16 | B18: 工作人员-22052903 | C18: 202205290116 | D18: 第一考场 | E18: 1 | G18: 55.1 | H18: 56.1
A19: 17 | B19: 工作人员-22052901 | C19: 202205290117 | D19: 第一考场 | G19: 0 | H19: 0 | I19: 缺考
A20: 18 | B20: 工作人员-22052903 | C20: 202205290118 | D20: 第一考场 | G20: 49.9 | H20: 49.9
A21: 19 | B21: 工作人员-22052901 | C21: 202205290119 | D21: 第一考场 | G21: 51.3 | H21: 51.3
A22: 20 | B22: 工作人员-22052901 | C22: 202205290120 | D22: 第一考场 | E22: 1 | G22: 57.8 | H22: 58.8
A23: 21 | B23: 工作人员-22052903 | C23: 202205290121 | D23: 第一考场 | G23: 57.5 | H23: 57.5
A24: 22 | B24: 工作人员-22052901 | C24: 202205290122 | D24: 第一考场 | G24: 49.2 | H24: 49.2
A25: 23 | B25: 工作人员-22052901 | C25: 202205290123 | D25: 第一考场 | G25: 48.7 | H25: 48.7
A26: 24 | B26: 工作人员-22052905 | C26: 202205290124 | D26: 第一考场 | G26: 65.3 | H26: 65.3
A27: 25 | B27: 工作人员-22052903 | C27: 202205290125 | D27: 第一考场 | E27: 1 | G27: 75.4 | H27: 76.4
A28: 26 | B28: 工作人员-22052904 | C28: 202205290126 | D28: 第一考场 | G28: 0 | H28: 0 | I28: 缺考
A29: 27 | B29: 工作人员-22052902 | C29: 202205290127 | D29: 第一考场 | G29: 52.5 | H29: 52.5
A30: 28 | B30: 工作人员-22052901 | C30: 202205290128 | D30: 第一考场 | G30: 50.1 | H30: 50.1
A31: 29 | B31: 工作人员-22052903 | C31: 202205290129 | D31: 第一考场 | G31: 51.2 | H31: 51.2
A32: 30 | B32: 工作人员-22052902 | C32: 202205290130 | D32: 第一考场 | G32: 0 | H32: 0 | I32: 缺考
A33: 31 | B33: 工作人员-22052903 | C33: 202205290201 | D33: 第二考场 | G33: 56.8 | H33: 56.8
A34: 32 | B34: 工作人员-22052902 | C34: 202205290202 | D34: 第二考场 | G34: 0 | H34: 0 | I34: 缺考
A35: 33 | B35: 工作人员-22052903 | C35: 202205290203 | D35: 第二考场 | G35: 53.9 | H35: 53.9
A36: 34 | B36: 工作人员-22052901 | C36: 202205290204 | D36: 第二考场 | G36: 47.4 | H36: 47.4
A37: 35 | B37: 工作人员-22052901 | C37: 202205290205 | D37: 第二考场 | E37: 1 | G37: 50.8 | H37: 51.8
A38: 36 | B38: 工作人员-22052901 | C38: 202205290206 | D38: 第二考场 | G38: 0 | H38: 0 | I38: 缺考
A39: 37 | B39: 工作人员-22052901 | C39: 202205290207 | D39: 第二考场 | G39: 60.2 | H39: 60.2
A40: 38 | B40: 工作人员-22052901 | C40: 202205290208 | D40: 第二考场 | G40: 0 | H40: 0 | I40: 缺考
A41: 39 | B41: 工作人员-22052905 | C41: 202205290209 | D41: 第二考场 | E41: 1 | G41: 48.3 | H41: 49.3
A42: 40 | B42: 工作人员-22052901 | C42: 202205290210 | D42: 第二考场 | G42: 54.2 | H42: 54.2
A43: 41 | B43: 工作人员-22052904 | C43: 202205290211 | D43: 第二考场 | E43: 1 | G43: 59.3 | H43: 60.3
A44: 42 | B44: 工作人员-22052903 | C44: 202205290212 | D44: 第二考场 | G44: 52.1 | H44: 52.1
A45: 43 | B45: 工作人员-22052904 | C45: 202205290213 | D45: 第二考场 | G45: 59.9 | H45: 59.9
A46: 44 | B46: 工作人员-22052901 | C46: 202205290214 | D46: 第二考场 | G46: 0 | H46: 0 | I46: 缺考
A47: 45 | B47: 工作人员-22052902 | C47: 202205290215 | D47: 第二考场 | E47: 1 | G47: 54.5 | H47: 55.5
A48: 46 | B48: 工作人员-22052901 | C48: 202205290216 | D48: 第二考场 | G48: 52.8 | H48: 52.8
A49: 47 | B49: 工作人员-22052901 | C49: 202205290217 | D49: 第二考场 | G49: 51.3 | H49: 51.3
A50: 48 | B50: 工作人员-22052902 | C50: 202205290218 | D50: 第二考场 | G50: 58.4 | H50: 58.4
A51: 49 | B51: 工作人员-22052902 | C51: 202205290219 | D51: 第二考场 | G51: 57.5 | H51: 57.5
A52: 50 | B52: 工作人员-22052901 | C52: 202205290220 | D52: 第二考场 | G52: 49.8 | H52: 49.8
A53: 51 | B53: 工作人员-22052903 | C53: 202205290221 | D53: 第二考场 | G53: 0 | H53: 0 | I53: 缺考
A54: 52 | B54: 工作人员-22052904 | C54: 202205290222 | D54: 第二考场 | G54: 61.5 | H54: 61.5
A55: 53 | B55: 工作人员-22052902 | C55: 202205290223 | D55: 第二考场 | E55: 1 | G55: 51.8 | H55: 52.8
A56: 54 | B56: 工作人员-22052901 | C56: 202205290224 | D56: 第二考场 | G56: 47.5 | H56: 47.5
A57: 55 | B57: 工作人员-22052901 | C57: 202205290225 | D57: 第二考场 | G57: 56.2 | H57: 56.2
A58: 56 | B58: 工作人员-22052903 | C58: 202205290226 | D58: 第二考场 | G58: 53.2 | H58: 53.2
A59: 57 | B59: 工作人员-22052901 | C59: 202205290227 | D59: 第二考场 | E59: 1 | G59: 48.2 | H59: 49.2
A60: 58 | B60: 工作人员-22052902 | C60: 202205290228 | D60: 第二考场 | G60: 52.9 | H60: 52.9
A61: 59 | B61: 工作人员-22052901 | C61: 202205290229 | D61: 第二考场 | E61: 1 | G61: 61.3 | H61: 62.3
A62: 60 | B62: 工作人员-22052903 | C62: 202205290230 | D62: 第二考场 | G62: 62.6 | H62: 62.6
A63: 61 | B63: 工作人员-22052902 | C63: 202205290301 | D63: 第三考场 | G63: 55.7 | H63: 55.7
A64: 62 | B64: 工作人员-22052901 | C64: 202205290302 | D64: 第三考场 | G64: 0 | H64: 0 | I64: 缺考
A65: 63 | B65: 工作人员-22052902 | C65: 202205290303 | D65: 第三考场 | E65: 1 | G65: 53 | H65: 54
A66: 64 | B66: 工作人员-22052903 | C66: 202205290304 | D66: 第三考场 | E66: 1 | G66: 57.9 | H66: 58.9
A67: 65 | B67: 工作人员-22052903 | C67: 202205290305 | D67: 第三考场 | G67: 58.9 | H67: =E67+F67+G67 -> 58.9
A68: 66 | B68: 工作人员-22052903 | C68: 202205290306 | D68: 第三考场 | E68: 1 | G68: 54.7 | H68: 55.7
A69: 67 | B69: 工作人员-22052904 | C69: 202205290307 | D69: 第三考场 | G69: 64.9 | H69: 64.9
A70: 68 | B70: 工作人员-22052901 | C70: 202205290308 | D70: 第三考场 | G70: 63.6 | H70: 63.6
A71: 69 | B71: 工作人员-22052902 | C71: 202205290309 | D71: 第三考场 | G71: 53.7 | H71: 53.7
A72: 70 | B72: 工作人员-22052902 | C72: 202205290310 | D72: 第三考场 | G72: 61.2 | H72: 61.2
A73: 71 | B73: 工作人员-22052905 | C73: 202205290311 | D73: 第三考场 | G73: 56.3 | H73: 56.3
A74: 72 | B74: 工作人员-22052904 | C74: 202205290312 | D74: 第三考场 | G74: 58.4 | H74: 58.4
A75: 73 | B75: 工作人员-22052901 | C75: 202205290313 | D75: 第三考场 | E75: 1 | G75: 63.1 | H75: 64.1
A76: 74 | B76: 工作人员-22052904 | C76: 202205290314 | D76: 第三考场 | G76: 56.3 | H76: 56.3
A77: 75 | B77: 工作人员-22052901 | C77: 202205290315 | D77: 第三考场 | G77: 58.1 | H77: 58.1
A78: 76 | B78: 工作人员-22052903 | C78: 202205290316 | D78: 第三考场 | G78: 50.2 | H78: 50.2
A79: 77 | B79: 工作人员-22052903 | C79: 202205290317 | D79: 第三考场 | G79: 59.3 | H79: 59.3
A80: 78 | B80: 工作人员-22052901 | C80: 202205290318 | D80: 第三考场 | G80: 59.4 | H80: 59.4
A81: 79 | B81: 工作人员-22052901 | C81: 202205290319 | D81: 第三考场 | G81: 51.3 | H81: 51.3
A82: 80 | B82: 工作人员-22052901 | C82: 202205290320 | D82: 第三考场 | G82: 53.4 | H82: 53.4
A83: 81 | B83: 工作人员-22052903 | C83: 202205290321 | D83: 第三考场 | E83: 1 | G83: 54 | H83: 55
A84: 82 | B84: 工作人员-22052901 | C84: 202205290322 | D84: 第三考场 | G84: 69.7 | H84: 69.7
A85: 83 | B85: 工作人员-22052903 | C85: 202205290323 | D85: 第三考场 | G85: 80.2 | H85: 80.2
A86: 84 | B86: 工作人员-22052901 | C86: 202205290324 | D86: 第三考场 | E86: 1 | G86: 56.4 | H86: 57.4
A87: 85 | B87: 工作人员-22052902 | C87: 202205290325 | D87: 第三考场 | G87: 49.9 | H87: 49.9
A88: 86 | B88: 工作人员-22052903 | C88: 202205290326 | D88: 第三考场 | G88: 58.5 | H88: 58.5
A89: 87 | B89: 工作人员-22052904 | C89: 202205290327 | D89: 第三考场 | E89: 1 | G89: 57.1 | H89: 58.1
A90: 88 | B90: 工作人员-22052901 | C90: 202205290328 | D90: 第三考场 | G90: 50.9 | H90: 50.9
A91: 89 | B91: 工作人员-22052901 | C91: 202205290329 | D91: 第三考场 | G91: 65.3 | H91: 65.3
A92: 90 | B92: 工作人员-22052901 | C92: 202205290330 | D92: 第三考场 | G92: 0 | H92: 0 | I92: 缺考
A93: 91 | B93: 工作人员-22052903 | C93: 202205290401 | D93: 第四考场 | G93: 57.9 | H93: 57.9
A94: 92 | B94: 工作人员-22052901 | C94: 202205290402 | D94: 第四考场 | G94: 50.5 | H94: 50.5
A95: 93 | B95: 工作人员-22052903 | C95: 202205290403 | D95: 第四考场 | E95: 1 | G95: 46.5 | H95: 47.5
A96: 94 | B96: 工作人员-22052904 | C96: 202205290404 | D96: 第四考场 | G96: 64.6 | H96: 64.6
A97: 95 | B97: 工作人员-22052903 | C97: 202205290405 | D97: 第四考场 | E97: 1 | G97: 54.7 | H97: 55.7
A98: 96 | B98: 工作人员-22052903 | C98: 202205290406 | D98: 第四考场 | G98: 65.1 | H98: 65.1
A99: 97 | B99: 工作人员-22052901 | C99: 202205290407 | D99: 第四考场 | G99: 54.2 | H99: 54.2
A100: 98 | B100: 工作人员-22052903 | C100: 202205290408 | D100: 第四考场 | G100: 61.7 | H100: 61.7
A101: 99 | B101: 工作人员-22052903 | C101: 202205290409 | D101: 第四考场 | E101: 1 | G101: 50.3 | H101: 51.3
A102: 100 | B102: 工作人员-22052902 | C102: 202205290410 | D102: 第四考场 | G102: 53.5 | H102: 53.5
A103: 101 | B103: 工作人员-22052904 | C103: 202205290411 | D103: 第四考场 | G103: 57 | H103: 57
A104: 102 | B104: 工作人员-22052904 | C104: 202205290412 | D104: 第四考场 | G104: 57.5 | H104: 57.5
A105: 103 | B105: 工作人员-22052903 | C105: 202205290413 | D105: 第四考场 | E105: 1 | G105: 61.8 | H105: 62.8
A106: 104 | B106: 工作人员-22052903 | C106: 202205290414 | D106: 第四考场 | E106: 1 | G106: 56.5 | H106: 57.5
A107: 105 | B107: 工作人员-22052903 | C107: 202205290415 | D107: 第四考场 | G107: 58.4 | H107: 58.4
A108: 106 | B108: 工作人员-22052903 | C108: 202205290416 | D108: 第四考场 | G108: 59.6 | H108: 59.6
A109: 107 | B109: 工作人员-22052902 | C109: 202205290417 | D109: 第四考场 | G109: 55.2 | H109: 55.2
A110: 108 | B110: 工作人员-22052901 | C110: 202205290418 | D110: 第四考场 | G110: 51.9 | H110: 51.9
A111: 109 | B111: 工作人员-22052902 | C111: 202205290419 | D111: 第四考场 | G111: 57 | H111: 57
A112: 110 | B112: 工作人员-22052901 | C112: 202205290420 | D112: 第四考场 | G112: 62.6 | H112: 62.6
A113: 111 | B113: 工作人员-22052902 | C113: 202205290421 | D113: 第四考场 | E113: 1 | G113: 58.8 | H113: 59.8
A114: 112 | B114: 工作人员-22052902 | C114: 202205290422 | D114: 第四考场 | G114: 54.6 | H114: 54.6
A115: 113 | B115: 工作人员-22052901 | C115: 202205290423 | D115: 第四考场 | G115: 60.2 | H115: 60.2
A116: 114 | B116: 工作人员-22052903 | C116: 202205290424 | D116: 第四考场 | G116: 67.2 | H116: 67.2
A117: 115 | B117: 工作人员-22052903 | C117: 202205290425 | D117: 第四考场 | G117: 0 | H117: 0 | I117: 缺考
A118: 116 | B118: 工作人员-22052903 | C118: 202205290426 | D118: 第四考场 | G118: 59.2 | H118: 59.2
A119: 117 | B119: 工作人员-22052901 | C119: 202205290427 | D119: 第四考场 | G119: 53.2 | H119: 53.2
A120: 118 | B120: 工作人员-22052903 | C120: 202205290428 | D120: 第四考场 | G120: 0 | H120: 0 | I120: 缺考
A121: 119 | B121: 工作人员-22052904 | C121: 202205290429 | D121: 第四考场 | G121: 0 | H121: 0 | I121: 缺考
A122: 120 | B122: 工作人员-22052901 | C122: 202205290430 | D122: 第四考场 | G122: 0 | H122: 0 | I122: 缺考
A123: 121 | B123: 工作人员-22052904 | C123: 202205290501 | D123: 第五考场 | G123: 58.2 | H123: 58.2
A124: 122 | B124: 工作人员-22052903 | C124: 202205290502 | D124: 第五考场 | G124: 52.9 | H124: 52.9
A125: 123 | B125: 工作人员-22052901 | C125: 202205290503 | D125: 第五考场 | G125: 59.9 | H125: 59.9
A126: 124 | B126: 工作人员-22052901 | C126: 202205290504 | D126: 第五考场 | E126: 1 | G126: 48.1 | H126: 49.1
A127: 125 | B127: 工作人员-22052903 | C127: 202205290505 | D127: 第五考场 | G127: 54 | H127: 54
A128: 126 | B128: 工作人员-22052901 | C128: 202205290506 | D128: 第五考场 | G128: 62.7 | H128: 62.7
A129: 127 | B129: 工作人员-22052904 | C129: 202205290507 | D129: 第五考场 | G129: 62.5 | H129: 62.5
A130: 128 | B130: 工作人员-22052904 | C130: 202205290508 | D130: 第五考场 | G130: 61.8 | H130: 61.8
A131: 129 | B131: 工作人员-22052901 | C131: 202205290509 | D131: 第五考场 | G131: 57.7 | H131: =E131+F131+G131 -> 57.7
A132: 130 | B132: 工作人员-22052903 | C132: 202205290510 | D132: 第五考场 | G132: 0 | H132: 0 | I132: 缺考
A133: 131 | B133: 工作人员-22052901 | C133: 202205290511 | D133: 第五考场 | G133: 62.9 | H133: 62.9
A134: 132 | B134: 工作人员-22052901 | C134: 202205290512 | D134: 第五考场 | E134: 1 | G134: 58.7 | H134: 59.7
A135: 133 | B135: 工作人员-22052901 | C135: 202205290513 | D135: 第五考场 | E135: 1 | G135: 46 | H135: 47
A136: 134 | B136: 工作人员-22052903 | C136: 202205290514 | D136: 第五考场 | G136: 0 | H136: 0 | I136: 缺考
A137: 135 | B137: 工作人员-22052901 | C137: 202205290515 | D137: 第五考场 | E137: 1 | F137: 1 | G137: 39.1 | H137: 41.1
A138: 136 | B138: 工作人员-22052901 | C138: 202205290516 | D138: 第五考场 | G138: 47 | H138: 47
A139: 137 | B139: 工作人员-22052901 | C139: 202205290517 | D139: 第五考场 | G139: 0 | H139: 0 | I139: 缺考
A140: 138 | B140: 工作人员-22052901 | C140: 202205290518 | D140: 第五考场 | G140: 52.5 | H140: 52.5
A141: 139 | B141: 工作人员-22052901 | C141: 202205290519 | D141: 第五考场 | E141: 1 | G141: 56.6 | H141: 57.6
A142: 140 | B142: 工作人员-22052901 | C142: 202205290520 | D142: 第五考场 | G142: 0 | H142: 0 | I142: 缺考
A143: 141 | B143: 工作人员-22052901 | C143: 202205290521 | D143: 第五考场 | E143: 1 | G143: 49.8 | H143: 50.8
A144: 142 | B144: 工作人员-22052901 | C144: 202205290522 | D144: 第五考场 | E144: 1 | G144: 57.9 | H144: 58.9
A145: 143 | B145: 工作人员-22052901 | C145: 202205290523 | D145: 第五考场 | E145: 1 | G145: 59.2 | H145: 60.2
A146: 144 | B146: 工作人员-22052901 | C146: 202205290524 | D146: 第五考场 | E146: 1 | G146: 46.9 | H146: 47.9
A147: 145 | B147: 工作人员-22052901 | C147: 202205290525 | D147: 第五考场 | G147: 70.2 | H147: 70.2
A148: 146 | B148: 工作人员-22052903 | C148: 202205290526 | D148: 第五考场 | E148: 1 | G148: 62.1 | H148: 63.1
A149: 147 | B149: 工作人员-22052903 | C149: 202205290527 | D149: 第五考场 | E149: 1 | G149: 50.5 | H149: 51.5
A150: 148 | B150: 工作人员-22052904 | C150: 202205290528 | D150: 第五考场 | G150: 56.9 | H150: 56.9
A151: 149 | B151: 工作人员-22052901 | C151: 202205290529 | D151: 第五考场 | G151: 0 | H151: 0 | I151: 缺考
A152: 150 | B152: 工作人员-22052902 | C152: 202205290530 | D152: 第五考场 | E152: 1 | G152: 65.9 | H152: 66.9
A153: 151 | B153: 工作人员-22052903 | C153: 202205290601 | D153: 第六考场 | E153: 1 | G153: 58.7 | H153: 59.7
A154: 152 | B154: 工作人员-22052901 | C154: 202205290602 | D154: 第六考场 | E154: 1 | G154: 59.4 | H154: 60.4
A155: 153 | B155: 工作人员-22052901 | C155: 202205290603 | D155: 第六考场 | G155: 58.6 | H155: 58.6
A156: 154 | B156: 工作人员-22052903 | C156: 202205290604 | D156: 第六考场 | G156: 62.4 | H156: 62.4
A157: 155 | B157: 工作人员-22052901 | C157: 202205290605 | D157: 第六考场 | E157: 1 | G157: 57 | H157: 58
A158: 156 | B158: 工作人员-22052903 | C158: 202205290606 | D158: 第六考场 | E158: 1 | G158: 57.1 | H158: 58.1
A159: 157 | B159: 工作人员-22052905 | C159: 202205290607 | D159: 第六考场 | G159: 62.1 | H159: 62.1
A160: 158 | B160: 工作人员-22052902 | C160: 202205290608 | D160: 第六考场 | G160: 53.2 | H160: 53.2
A161: 159 | B161: 工作人员-22052901 | C161: 202205290609 | D161: 第六考场 | E161: 1 | G161: 43.5 | H161: 44.5
A162: 160 | B162: 工作人员-22052901 | C162: 202205290610 | D162: 第六考场 | E162: 1 | G162: 46.9 | H162: 47.9
A163: 161 | B163: 工作人员-22052902 | C163: 202205290611 | D163: 第六考场 | G163: 61.4 | H163: 61.4
A164: 162 | B164: 工作人员-22052901 | C164: 202205290612 | D164: 第六考场 | G164: 0 | H164: 0 | I164: 缺考
A165: 163 | B165: 工作人员-22052905 | C165: 202205290613 | D165: 第六考场 | G165: 65.2 | H165: 65.2
A166: 164 | B166: 工作人员-22052902 | C166: 202205290614 | D166: 第六考场 | G166: 61.2 | H166: 61.2
A167: 165 | B167: 工作人员-22052902 | C167: 202205290615 | D167: 第六考场 | E167: 1 | G167: 58.7 | H167: 59.7
A168: 166 | B168: 工作人员-22052902 | C168: 202205290616 | D168: 第六考场 | G168: 55.2 | H168: 55.2
A169: 167 | B169: 工作人员-22052902 | C169: 202205290617 | D169: 第六考场 | G169: 49.4 | H169: 49.4
A170: 168 | B170: 工作人员-22052902 | C170: 202205290618 | D170: 第六考场 | G170: 64.1 | H170: 64.1
A171: 169 | B171: 工作人员-22052901 | C171: 202205290619 | D171: 第六考场 | G171: 0 | H171: 0 | I171: 缺考
A172: 170 | B172: 工作人员-22052901 | C172: 202205290620 | D172: 第六考场 | E172: 1 | G172: 63.4 | H172: 64.4
A173: 171 | B173: 工作人员-22052902 | C173: 202205290621 | D173: 第六考场 | G173: 57.2 | H173: 57.2
A174: 172 | B174: 工作人员-22052901 | C174: 202205290622 | D174: 第六考场 | E174: 1 | G174: 35.3 | H174: 36.3
A175: 173 | B175: 工作人员-22052905 | C175: 202205290623 | D175: 第六考场 | E175: 1 | G175: 62.1 | H175: 63.1
A176: 174 | B176: 工作人员-22052902 | C176: 202205290624 | D176: 第六考场 | E176: 1 | G176: 51.7 | H176: 52.7
A177: 175 | B177: 工作人员-22052901 | C177: 202205290625 | D177: 第六考场 | G177: 47.3 | H177: 47.3
A178: 176 | B178: 工作人员-22052902 | C178: 202205290626 | D178: 第六考场 | E178: 1 | G178: 52.5 | H178: 53.5
A179: 177 | B179: 工作人员-22052901 | C179: 202205290627 | D179: 第六考场 | F179: 1 | G179: 57.2 | H179: 58.2
A180: 178 | B180: 工作人员-22052901 | C180: 202205290628 | D180: 第六考场 | E180: 1 | G180: 54.3 | H180: 55.3
A181: 179 | B181: 工作人员-22052902 | C181: 202205290629 | D181: 第六考场 | E181: 1 | G181: 60.9 | H181: 61.9
A182: 180 | B182: 工作人员-22052901 | C182: 202205290630 | D182: 第六考场 | G182: 0 | H182: 0 | I182: 缺考
A183: 181 | B183: 工作人员-22052901 | C183: 202205290701 | D183: 第七考场 | G183: 0 | H183: 0 | I183: 缺考
A184: 182 | B184: 工作人员-22052901 | C184: 202205290702 | D184: 第七考场 | E184: 1 | G184: 45.3 | H184: 46.3
A185: 183 | B185: 工作人员-22052903 | C185: 202205290703 | D185: 第七考场 | E185: 1 | G185: 49.9 | H185: 50.9
A186: 184 | B186: 工作人员-22052901 | C186: 202205290704 | D186: 第七考场 | G186: 60.4 | H186: 60.4
A187: 185 | B187: 工作人员-22052904 | C187: 202205290705 | D187: 第七考场 | G187: 58 | H187: 58
A188: 186 | B188: 工作人员-22052901 | C188: 202205290706 | D188: 第七考场 | G188: 57 | H188: 57
A189: 187 | B189: 工作人员-22052902 | C189: 202205290707 | D189: 第七考场 | G189: 46.2 | H189: 46.2
A190: 188 | B190: 工作人员-22052901 | C190: 202205290708 | D190: 第七考场 | G190: 47 | H190: 47
A191: 189 | B191: 工作人员-22052902 | C191: 202205290709 | D191: 第七考场 | E191: 1 | G191: 47.9 | H191: 48.9
A192: 190 | B192: 工作人员-22052901 | C192: 202205290710 | D192: 第七考场 | E192: 1 | G192: 63 | H192: 64
A193: 191 | B193: 工作人员-22052901 | C193: 202205290711 | D193: 第七考场 | G193: 56.8 | H193: 56.8
A194: 192 | B194: 工作人员-22052902 | C194: 202205290712 | D194: 第七考场 | E194: 1 | F194: 1 | G194: 70.1 | H194: 72.1
A195: 193 | B195: 工作人员-22052903 | C195: 202205290713 | D195: 第七考场 | G195: 56.3 | H195: =E195+F195+G195 -> 56.3
A196: 194 | B196: 工作人员-22052901 | C196: 202205290714 | D196: 第七考场 | E196: 1 | F196: 1 | G196: 57.7 | H196: 59.7
A197: 195 | B197: 工作人员-22052904 | C197: 202205290715 | D197: 第七考场 | E197: 1 | F197: 1 | G197: 48.8 | H197: 50.8
A198: 196 | B198: 工作人员-22052901 | C198: 202205290716 | D198: 第七考场 | E198: 1 | G198: 55.5 | H198: 56.5
A199: 197 | B199: 工作人员-22052902 | C199: 202205290717 | D199: 第七考场 | E199: 1 | F199: 1 | G199: 47.4 | H199: 49.4
A200: 198 | B200: 工作人员-22052903 | C200: 202205290718 | D200: 第七考场 | E200: 1 | G200: 59 | H200: 60
... 459 more rows
